fUST/lending_fUST_20250930
["ID","MTS","AMOUNT","RATE_DAILY","PERIOD"]
[388508510,1759223446197,-241.25833996,0.00019412,2]
[388509755,1759223463726,636.19465556,0.00019211,2]
[388510105,1759223500066,771.0,0.00019,2]
[388510110,1759223527245,2500.0,0.00033133,20]
[388510111,1759223549676,500.0,0.00019211,2]
[388510112,1759223554518,500.0,0.00019211,2]
[388510113,1759223559712,500.0,0.00019211,2]
[388510114,1759223574273,500.0,0.00019211,2]
[388510115,1759223576723,-1029.23468604,0.00019311,2]
[388510116,1759223576752,-2079.3522668,0.00019385,2]
[388510117,1759223576780,-300.0,0.00019401,2]
[388510118,1759223576810,-1200.0,0.00019401,2]
[388510119,1759223577224,-1879.35,0.00019402,3]
[388510120,1759223577251,-939.68,0.00019402,3]
[388510121,1759223577278,-469.84,0.00019402,3]
[388510122,1759223577311,-234.92,0.00019402,3]
[388510123,1759223577338,-704.77,0.00019402,3]
[388510124,1759223577367,-500.0,0.0001941,2]
[388510125,1759223577397,-42.89,0.0001941,2]
[388510126,1759223577650,-457.11,0.0001941,2]
[388510127,1759223577684,-500.0,0.0001941,2]
[388510128,1759223577714,-152.79918893,0.0001941,2]
[388510129,1759223577744,-500.0,0.0001941,2]
[388510130,1759223577773,-231.31006954,0.0001941,2]
[388510131,1759223577802,-500.0,0.0001941,2]
[388510132,1759223577833,-500.0,0.0001941,2]
[388510133,1759223577863,-500.0,0.0001941,2]
[388510134,1759223577894,-500.0,0.0001941,2]
[388510135,1759223577922,-500.0,0.0001941,2]
[388510136,1759223577951,-500.0,0.0001941,2]
[388510137,1759223577994,-500.0,0.0001941,2]
[388510138,1759223578025,-500.0,0.0001941,2]
[388510139,1759223578055,-500.0,0.0001941,2]
[388510140,1759223578087,-500.0,0.0001941,2]
[388510141,1759223578116,-500.0,0.0001941,2]
[388510142,1759223578147,-351.76641887,0.0001941,2]
[388510143,1759223578177,-500.0,0.0001941,2]
[388510144,1759223578208,-500.0,0.0001941,2]
[388510145,1759223578240,-500.0,0.0001941,2]
[388510146,1759223578270,-500.0,0.0001941,2]
[388510147,1759223578366,-500.0,0.0001941,2]
[388510148,1759223578397,-500.0,0.0001941,2]
[388510149,1759223578426,-500.0,0.0001941,2]
[388510150,1759223578456,-500.0,0.0001941,2]
[388510151,1759223578489,-500.0,0.0001941,2]
[388510152,1759223578522,-500.0,0.0001941,2]
[388510153,1759223578552,-500.0,0.0001941,2]
[388510154,1759223578582,-500.0,0.0001941,2]
[388510155,1759223578611,-500.0,0.0001941,2]
[388510156,1759223578639,-500.0,0.0001941,2]
[388510157,1759223586592,-300.0,0.0001941,2]
[388510158,1759223597146,-400.98893924,0.00019411,2]
[388510159,1759223597177,-10000.01,0.00019411,2]
[388510160,1759223597244,-2812.46412482,0.00019411,2]
[388510161,1759223597409,-500.0,0.00019411,2]
[388510162,1759223597436,-500.0,0.00019411,2]
[388510163,1759223597462,-500.0,0.00019411,2]
[388510164,1759223597488,-500.0,0.00019411,2]
[388510165,1759223597542,-500.0,0.00019411,2]
[388510166,1759223597568,-500.0,0.00019411,2]
[388510167,1759223597595,-500.0,0.00019411,2]
[388510168,1759223597623,-500.0,0.00019411,2]
[388510169,1759223597650,-500.0,0.00019411,2]
[388510170,1759223597682,-500.0,0.00019411,2]
[388510171,1759223597709,-494.13,0.00019411,2]
[388510172,1759223597737,-500.0,0.00019411,2]
[388510173,1759223597765,-500.0,0.00019411,2]
[388510174,1759223597791,-500.0,0.00019411,2]
[388510175,1759223598028,-380.95175036,0.00019411,2]
[388510176,1759223598041,-11.75,0.00019411,2]
[388510177,1759223603655,-793.05,0.00019402,3]
[388510178,1759223603687,-221.74824964,0.00019411,2]
[388510179,1759223603717,-480.0,0.00019411,2]
[388510180,1759223603746,-863.25,0.00019411,2]
[388510181,1759223603774,-602.08,0.00019411,2]
[388510182,1759223603803,-1557.69350072,0.00019411,2]
[388510183,1759223603903,-964.36649928,0.00019411,2]
[388510184,1759223603952,-179.743,0.00019411,2]
[388510185,1759223603985,-669.58,0.00019411,2]
[388510186,1759223604014,-273.3325068,0.00019411,2]
[388510187,1759223604044,-500.0,0.00019411,2]
[388510188,1759223604074,-500.0,0.00019411,2]
[388510189,1759223604102,-500.0,0.00019411,2]
[388510190,1759223604131,-500.0,0.00019411,2]
[388510191,1759223604159,-500.0,0.00019411,2]
[388510192,1759223604186,-480.0,0.00019411,2]
[388510193,1759223604214,-480.0,0.00019411,2]
[388510194,1759223604242,-334.6989864,0.00019411,2]
[388510195,1759223604354,-165.3010136,0.00019411,2]
[388510196,1759223604381,-500.0,0.00019411,2]
[388510197,1759223604407,-500.0,0.00019411,2]
[388510198,1759223604434,-1451.24,0.00019411,2]
[388510199,1759223604461,-500.0,0.00019411,2]
[388510200,1759223604490,-500.0,0.00019411,2]
[388510201,1759223604517,-500.0,0.00019411,2]
[388510202,1759223604545,-500.0,0.00019411,2]
[388510203,1759223604572,-275.02229833,0.00019411,2]
[388510204,1759223604670,-216.88337614,0.00019411,2]
[388510205,1759223604705,-500.0,0.00019411,2]
[388510206,1759223604740,-500.0,0.00019411,2]
[388510207,1759223604773,-500.0,0.00019411,2]
[388510208,1759223604803,-500.0,0.00019411,2]
[388510209,1759223604832,-500.0,0.00019411,2]
[388510210,1759223604861,-500.0,0.00019411,2]
[388510211,1759223604888,-500.0,0.00019411,2]
[388510212,1759223604916,-283.40162128,0.00019411,2]
[388510213,1759223609394,469.14,0.00019402,3]
[388510214,1759223609597,480.0,0.00019411,2]
[388510215,1759223610704,500.0,0.00019411,2]
[388510216,1759223610933,500.0,0.00019411,2]
[388510217,1759223611457,50.30000516,0.00019411,2]
[388510218,1759223621621,-629.79,0.00019402,3]
[388510219,1759223621650,-449.69999484,0.00019411,2]
[388510220,1759223621677,-198.24380075,0.00019411,2]
[388510221,1759223621707,-212.27596218,0.00019411,2]
[388510222,1759223621737,-500.0,0.00019411,2]
[388510223,1759223621765,-339.41046518,0.00019411,2]
[388510224,1759223623869,480.0,0.00019411,2]
[388510225,1759223635310,2443.38,0.00019411,2]
[388510226,1759223638619,500.0,0.00019411,2]
[388510227,1759223642218,159.2550529,0.00019351,2]
[388510228,1759223642360,300.0,0.00019411,2]
[388510229,1759223642392,170.6148935,0.00019351,2]
[388510230,1759223648571,480.0,0.00019411,2]
[388510231,1759223651744,807.9196077,0.00019412,2]
[388510232,1759223651767,534.75763536,0.00019412,2]
[388510233,1759223662184,480.0,0.00019411,2]
[388510234,1759223667167,2390.88023311,0.00019412,2]
[388510235,1759223667843,500.0,0.00019411,2]
[388510236,1759223671092,480.0,0.00019411,2]
[388510237,1759223671146,480.0,0.00019411,2]
[388510238,1759223674281,500.0,0.00019411,2]
[388510239,1759223674335,500.0,0.00019411,2]
[388510240,1759223674390,435.17664189,0.00019411,2]
[388510241,1759223675567,3314.19493761,0.00019412,2]
[388510242,1759223678857,385.00055203,0.00019411,2]
[388510243,1759223678882,96.70944797,0.00019411,2]
[388510244,1759223684203,304.49803656,0.00019412,2]
[388510245,1759223692780,536.88,0.00019411,2]
[388510246,1759223693074,2656.06272046,0.00019412,2]
[388510247,1759223710057,192.29460553,0.00019314,2]
[388510248,1759223718831,2095.90280617,0.00019314,2]
[388510249,1759223723054,169.298133,0.00018442,2]
[388510250,1759223728867,45628.0,0.00033133,20]
[388510251,1759223737315,7542.5144553,0.00018442,2]
[388510252,1759223737336,10000.01,0.00018442,2]
[388510253,1759223737356,10000.01,0.00018442,2]
[388510254,1759223737377,10000.01,0.00018442,2]
[388510255,1759223737398,818.6021682,0.00018442,2]
[388510256,1759223738524,500.0,0.00019211,2]
[388510257,1759223746704,224.26,0.000192,2]
[388510258,1759223760820,530.44,0.00019211,2]
[388510259,1759223798184,168.0,0.000192,2]
[388510260,1759223807996,56205.0,0.00033125,20]
[388510261,1759223808567,168.0,0.00018874,2]
[388510262,1759223816999,500.0,0.00019211,2]
[388510263,1759223818270,300.0,0.000192,2]
[388510264,1759223831455,300.0,0.000192,2]
[388510265,1759223858905,500.0,0.00019211,2]
[388510266,1759223880827,500.0,0.00019211,2]
[388510267,1759223901586,5000.0,0.00019314,2]
[388510268,1759223914915,490.7078318,0.00019211,2]
[388510269,1759223914938,9.2921682,0.00019211,2]
[388510270,1759223915265,666.0,0.00018421,2]
[388510271,1759223923988,4158.9397022,0.00018502,2]
[388510272,1759223925314,5000.0,0.00019314,2]
[388510273,1759223941614,165.7781296,0.00019314,2]
[388510274,1759223941638,4834.2218704,0.00019314,2]
[388510275,1759223950235,5000.0,0.00019314,2]
[388510276,1759223966025,165.7881296,0.00019314,2]
[388510277,1759223966051,4834.2118704,0.00019314,2]
[388510278,1759223974675,1887.85542064,0.00019314,2]
[388510279,1759223983705,3277.94270896,0.00019312,2]
[388510280,1759223983728,10000.01,0.00019312,2]
[388510281,1759223983751,10000.01,0.00019312,2]
[388510282,1759223983772,10000.01,0.00019312,2]
[388510283,1759223983795,10000.01,0.00019312,2]
[388510284,1759223983819,10000.01,0.00019312,2]
[388510285,1759223983843,10000.01,0.00019312,2]
[388510286,1759223983865,10000.01,0.00019312,2]
[388510287,1759223983887,10000.01,0.00019312,2]
[388510288,1759223983913,10000.01,0.00019312,2]
[388510289,1759223987855,-206.62425766,0.00019312,2]
[388510290,1759223990166,265.92257133,0.00019081,2]
[388510291,1759223990199,4734.07742867,0.00019081,2]
[388510292,1759224006343,4910.50231368,0.00019081,2]
[388510293,1759224006971,-796.20283639,0.00019285,2]
[388510294,1759224007000,-280.0,0.00019311,2]
[388510295,1759224007028,-300.0,0.00019311,2]
[388510296,1759224007058,-300.0,0.00019311,2]
[388510297,1759224007089,-1200.0,0.00019311,2]
[388510298,1759224015002,4247.60432722,0.00019312,2]
[388510299,1759224015024,752.39567278,0.00019312,2]
[388510300,1759224018512,-592.92057606,0.00019312,2]
[388510301,1759224021496,-204.76438321,0.00019312,2]
[388510302,1759224023059,-163.83918621,0.00019312,2]
[388510303,1759224023812,5000.0,0.00019312,2]
[388510304,1759224026576,-280.69706122,0.00019312,2]
[388510305,1759224028632,-185.46340084,0.00019312,2]
[388510306,1759224030605,-155.35510159,0.00019312,2]
[388510307,1759224033096,-311.93504482,0.00019312,2]
[388510308,1759224033415,500.0,0.00019311,2]
[388510309,1759224033444,449.98072586,0.00019311,2]
[388510310,1759224033471,262.29455528,0.00019311,2]
[388510311,1759224033505,500.0,0.00019311,2]
[388510312,1759224033532,500.0,0.00019311,2]
[388510313,1759224033570,500.0,0.00019311,2]
[388510314,1759224033601,500.0,0.00019311,2]
[388510315,1759224033637,500.0,0.00019311,2]
[388510316,1759224033756,500.0,0.00019311,2]
[388510317,1759224033803,35.33904608,0.00019311,2]
[388510318,1759224033826,464.66095392,0.00019311,2]
[388510319,1759224033854,500.0,0.00019311,2]
[388510320,1759224033932,500.0,0.00019311,2]
[388510321,1759224034015,500.0,0.00019311,2]
[388510322,1759224034144,500.0,0.00019311,2]
[388510323,1759224034376,500.0,0.00019311,2]
[388510324,1759224034922,-446.69168566,0.00019312,2]
[388510325,1759224035573,159.46407132,0.00019311,2]
[388510326,1759224036581,-703.7046768,0.00019312,2]
[388510327,1759224038031,-201.13366746,0.00019312,2]
[388510328,1759224039756,-246.02726314,0.00019312,2]
[388510329,1759224039881,5000.0,0.00019312,2]
[388510330,1759224041836,-152.0,0.00019312,2]
[388510331,1759224042803,482.45013999,0.00019311,2]
[388510332,1759224044979,482.0,0.00019121,2]
[388510333,1759224048474,911.43483477,0.00019312,2]
[388510334,1759224048497,4088.56516523,0.00019312,2]
[388510335,1759224050550,453.22670862,0.00019311,2]
[388510336,1759224050593,164.9865081,0.00019311,2]
[388510337,1759224051260,482.0,0.0001915,2]
[388510338,1759224062396,300.0,0.00019311,2]
[388510339,1759224063605,500.0,0.000193,2]
[388510340,1759224063891,4011.23161805,0.00019312,2]
[388510341,1759224063913,988.76838195,0.00019312,2]
[388510342,1759224069775,1174.59,0.00019302,3]
[388510343,1759224080395,587.3,0.00019302,3]
[388510344,1759224081802,480.0,0.00019311,2]
[388510345,1759224088509,5000.0,0.00019312,2]
[388510346,1759224091006,293.65,0.00019302,3]
[388510347,1759224101395,500.0,0.00019311,2]
[388510348,1759224102056,880.96,0.00019302,3]
[388510349,1759224106145,94.74161805,0.00019285,2]
[388510350,1759224106167,883.86408128,0.00019285,2]
[388510351,1759224109243,17845.0,0.00033124,20]
[388510352,1759224111732,5000.0,0.00019312,2]
[388510353,1759224125801,500.0,0.00019311,2]
[388510354,1759224135187,3616.14591872,0.00019312,2]
[388510355,1759224135210,1383.85408128,0.00019312,2]
[388510356,1759224143080,1200.0,0.00019311,2]
[388510357,1759224159416,5000.0,0.00019312,2]
[388510358,1759224175825,2040.81649929,0.00019312,10]
[388510359,1759224182432,375.33941943,0.00019312,2]
[388510360,1759224182458,4624.66058057,0.00019312,2]
[388510361,1759224183087,300.0,0.00019311,2]
[388510362,1759224199347,641.68,0.00019311,2]
[388510363,1759224206308,4433.66941943,0.00019312,2]
[388510364,1759224206332,566.33058057,0.00019312,2]
[388510365,1759224210812,500.0,0.00019311,2]
[388510366,1759224218414,482.70768048,0.00019311,2]
[388510367,1759224221771,480.0,0.00019311,2]
[388510368,1759224222668,500.0,0.00019311,2]
[388510369,1759224229722,5000.0,0.00019312,2]
[388510370,1759224243291,300.0,0.00019311,2]
[388510371,1759224252736,2170.97173895,0.0001931,2]
[388510372,1759224252761,70.45505366,0.0001931,2]
[388510373,1759224254316,5000.0,0.00019312,2]
[388510374,1759224277675,4929.55494634,0.00019312,2]
[388510375,1759224277699,70.44505366,0.00019312,2]
[388510376,1759224288067,1390.77,0.00019311,2]
[388510377,1759224294273,500.0,0.00019311,2]
[388510378,1759224294443,500.0,0.00019311,2]
[388510379,1759224296896,500.0,0.00019311,2]
[388510380,1759224300924,5000.0,0.00019081,2]
[388510381,1759224303844,-152.0,0.00019311,2]
[388510382,1759224307132,250.0,0.00033124,30]
[388510383,1759224307238,-148.0,0.00019311,2]
[388510384,1759224307272,-1200.0,0.00019311,2]
[388510385,1759224307836,250.0,0.00033124,30]
[388510386,1759224308580,250.0,0.00033124,30]
[388510387,1759224309643,250.0,0.00033124,30]
[388510389,1759224310460,250.0,0.00033124,30]
[388510390,1759224311195,250.0,0.00033124,30]
[388510391,1759224312003,250.0,0.00033124,30]
[388510392,1759224312739,250.0,0.00033124,30]
[388510393,1759224317007,-9160.45085487,0.00019312,2]
[388510394,1759224319752,-10000.01,0.00019312,2]
[388510395,1759224319870,-10000.01,0.00019312,2]
[388510396,1759224319998,-480.0,0.00019311,2]
[388510397,1759224320040,-9040.01,0.00019312,2]
[388510398,1759224320112,-10000.01,0.00019312,2]
[388510399,1759224320275,-10000.01,0.00019312,2]
[388510400,1759224320411,-10000.01,0.00019312,2]
[388510401,1759224320563,-10000.01,0.00019312,2]
[388510402,1759224320675,-10000.01,0.00019312,2]
[388510403,1759224320914,-10000.01,0.00019312,2]
[388510404,1759224324479,5000.0,0.00019081,2]
[388510405,1759224329004,1147.7740697,0.00018414,2]
[388510406,1759224337211,-500.0,0.00019311,2]
[388510407,1759224337240,-544.232171,0.00019311,2]
[388510408,1759224346115,500.0,0.00019311,2]
[388510409,1759224347556,2732.31124382,0.00019312,2]
[388510410,1759224362323,300.0,0.00019311,2]
[388510411,1759224367694,480.0,0.00019311,2]
[388510412,1759224374379,446.2396354,0.00018414,2]
[388510413,1759224385176,480.0,0.00019311,2]
[388510414,1759224394861,480.0,0.00019311,2]
[388510415,1759224416836,480.0,0.00019311,2]
[388510416,1759224422467,300.0,0.00019311,2]
[388510417,1759224423357,203.74681374,0.000193,2]
[388510418,1759224425107,480.0,0.00019311,2]
[388510419,1759224428658,500.0,0.00019311,2]
[388510420,1759224431552,231.9984478,0.00018414,2]
[388510421,1759224435039,297.24951724,0.00019311,2]
[388510422,1759224435062,182.75048276,0.00019311,2]
[388510423,1759224435334,500.0,0.00019311,2]
[388510424,1759224437087,189.43,0.00019311,2]
[388510425,1759224440569,480.0,0.00019311,2]
[388510426,1759224442100,896.0,0.00019311,2]
[388510427,1759224445291,500.0,0.00019311,2]
[388510428,1759224460549,5185.03372486,0.00033124,120]
[388510429,1759224471525,865.53,0.00019311,2]
[388510430,1759224479316,500.0,0.00019311,2]
[388510431,1759224480436,480.0,0.00019311,2]
[388510432,1759224482510,300.0,0.00019311,2]
[388510433,1759224482956,480.0,0.00019311,2]
[388510434,1759224486390,480.0,0.00019311,2]
[388510435,1759224487274,3959.58754843,0.00033124,120]
[388510436,1759224487697,480.0,0.00019311,2]
[388510437,1759224488553,19272.76889451,0.00033124,120]
[388510438,1759224498225,480.0,0.00019311,2]
[388510439,1759224499579,480.0,0.00019311,2]
[388510440,1759224504471,7170.18414434,0.00033124,120]
[388510441,1759224512155,227.653529,0.00018414,2]
[388510442,1759224513048,5550.65327026,0.00033124,120]
[388510443,1759224513258,215621.81332914,0.00033124,120]
[388510444,1759224514179,8901.86016169,0.00033124,120]
[388510445,1759224514212,10004.82840383,0.00033124,120]
[388510447,1759224515489,480.0,0.00019311,2]
[388510448,1759224516758,5384.61094987,0.00033124,120]
[388510449,1759224516795,595.25,0.00019311,2]
[388510450,1759224517248,4496.23488,0.00033124,120]
[388510451,1759224517407,480.0,0.00019311,2]
[388510452,1759224518275,-3011.86033024,0.00019312,2]
[388510453,1759224518290,-10000.01,0.00019312,2]
[388510454,1759224518333,7530.08346083,0.00033124,120]
[388510455,1759224518349,-10000.01,0.00019312,2]
[388510456,1759224518434,-10000.01,0.00019312,2]
[388510457,1759224518606,-10000.01,0.00019312,2]
[388510458,1759224518812,-10000.01,0.00019312,2]
[388510459,1759224518971,-10000.01,0.00019312,2]
[388510460,1759224519093,-10000.01,0.00019312,2]
[388510461,1759224519227,-10000.01,0.00019312,2]
[388510463,1759224522950,-246.02726314,0.00019311,2]
[388510464,1759224527569,-213.97273686,0.00019311,2]
[388510465,1759224527597,-500.0,0.00019311,2]
[388510466,1759224527643,-8572.06452628,0.00019312,2]
[388510467,1759224537397,-10000.01,0.00019312,2]
[388510468,1759224537508,-10000.01,0.00019312,2]
[388510469,1759224537649,-10000.01,0.00019312,2]
[388510470,1759224537802,-10000.01,0.00019312,2]
[388510471,1759224537939,-10000.01,0.00019312,2]
[388510472,1759224538084,-10000.01,0.00019312,2]
[388510473,1759224538248,-10000.01,0.00019312,2]
[388510474,1759224538380,-10000.01,0.00019312,2]
[388510475,1759224538488,-3086.18527498,0.00019312,2]
[388510476,1759224539835,480.0,0.00019311,2]
[388510477,1759224545112,480.0,0.00019311,2]
[388510478,1759224548342,291.01,0.00019311,2]
[388510479,1759224548582,480.0,0.00019311,2]
[388510480,1759224550381,480.0,0.00019311,2]
[388510481,1759224552375,480.0,0.00019311,2]
[388510482,1759224556439,1136.62945004,0.00019312,2]
[388510483,1759224564955,2051.41397404,0.00019214,2]
[388510484,1759224573741,5000.0,0.00019214,2]
[388510485,1759224597495,2948.59602596,0.00019214,2]
[388510486,1759224597517,2051.40397404,0.00019214,2]
[388510487,1759224604748,199.08438339,0.00019147,2]
[388510488,1759224621023,5000.0,0.00019214,2]
[388510489,1759224628484,856.27998694,0.00019211,2]
[388510523,1759224632155,-300.0,0.000193,2]
[388510524,1759224632165,-300.0,0.000193,2]
[388510525,1759224632175,-300.0,0.000193,2]
[388510526,1759224632185,-300.0,0.0001931,2]
[388510527,1759224632198,-300.0,0.0001931,2]
[388510528,1759224632208,-300.0,0.0001931,2]
[388510529,1759224632223,-300.0,0.0001931,2]
[388510530,1759224632237,-1200.0,0.0001931,2]
[388510531,1759224632247,-500.0,0.00019311,2]
[388510532,1759224632256,-480.0,0.00019311,2]
[388510533,1759224632267,-620.11,0.00019311,2]
[388510534,1759224632276,-500.0,0.00019311,2]
[388510535,1759224632285,-500.0,0.00019311,2]
[388510536,1759224632295,-480.0,0.00019311,2]
[388510538,1759224632308,-480.0,0.00019311,2]
[388510540,1759224632317,-480.0,0.00019311,2]
[388510542,1759224632327,-480.0,0.00019311,2]
[388510544,1759224632336,-480.0,0.00019311,2]
[388510546,1759224632346,-2341.57,0.00019311,2]
[388510548,1759224632355,-480.0,0.00019311,2]
[388510549,1759224632363,-470.60186324,0.00019311,2]
[388510550,1759224632372,-480.0,0.00019311,2]
[388510551,1759224632382,-500.0,0.00019311,2]
[388510552,1759224632391,-465.47208289,0.00019311,2]
[388510553,1759224632399,-500.0,0.00019311,2]
[388510554,1759224632408,-483.5767731,0.00019311,2]
[388510555,1759224632417,-500.0,0.00019311,2]
[388510556,1759224632426,-500.0,0.00019311,2]
[388510557,1759224632435,-500.0,0.00019311,2]
[388510558,1759224632444,-500.0,0.00019311,2]
[388510559,1759224632453,-500.0,0.00019311,2]
[388510560,1759224632465,-500.0,0.00019311,2]
[388510561,1759224632474,-201.76414772,0.00019311,2]
[388510562,1759224632483,-500.0,0.00019311,2]
[388510563,1759224632493,-500.0,0.00019311,2]
[388510564,1759224632502,-500.0,0.00019311,2]
[388510565,1759224632511,-500.0,0.00019311,2]
[388510566,1759224632520,-500.0,0.00019311,2]
[388510567,1759224632528,-500.0,0.00019311,2]
[388510568,1759224632537,-500.0,0.00019311,2]
[388510569,1759224632546,-500.0,0.00019311,2]
[388510570,1759224632555,-500.0,0.00019311,2]
[388510571,1759224632564,-500.0,0.00019311,2]
[388510572,1759224632573,-500.0,0.00019311,2]
[388510573,1759224632582,-500.0,0.00019311,2]
[388510574,1759224632591,-500.0,0.00019311,2]
[388510575,1759224632600,-500.0,0.00019311,2]
[388510576,1759224632609,-500.0,0.00019311,2]
[388510577,1759224632618,-500.0,0.00019311,2]
[388510578,1759224632627,-173.64953852,0.00019311,2]
[388510579,1759224632636,-500.0,0.00019311,2]
[388510580,1759224632644,-500.0,0.00019311,2]
[388510581,1759224632653,-491.42126705,0.00019311,2]
[388510582,1759224632662,-500.0,0.00019311,2]
[388510583,1759224632671,-249.65244034,0.00019311,2]
[388510584,1759224632679,-500.0,0.00019311,2]
[388510585,1759224632688,-520.0,0.00019311,2]
[388510586,1759224632697,-500.0,0.00019311,2]
[388510587,1759224632706,-500.0,0.00019311,2]
[388510588,1759224632717,-500.0,0.00019311,2]
[388510589,1759224632725,-500.0,0.00019311,2]
[388510590,1759224632734,-500.0,0.00019311,2]
[388510591,1759224632743,-424.10823143,0.00019311,2]
[388510592,1759224632752,-500.0,0.00019311,2]
[388510593,1759224632761,-500.0,0.00019311,2]
[388510594,1759224632770,-251.6611596,0.00019311,2]
[388510595,1759224632779,-500.0,0.00019311,2]
[388510596,1759224632788,-500.0,0.00019311,2]
[388510597,1759224632798,-500.0,0.00019311,2]
[388510598,1759224632807,-500.0,0.00019311,2]
[388510599,1759224632816,-500.0,0.00019311,2]
[388510600,1759224632825,-264.09,0.00019311,2]
[388510601,1759224632834,-500.0,0.00019311,2]
[388510602,1759224632843,-500.0,0.00019311,2]
[388510603,1759224632851,-500.0,0.00019311,2]
[388510604,1759224632860,-567.89085284,0.00019311,2]
[388510605,1759224632869,-500.0,0.00019311,2]
[388510606,1759224632878,-500.0,0.00019311,2]
[388510607,1759224632888,-427.11965095,0.00019311,2]
[388510608,1759224632897,-302.70390043,0.00019311,2]
[388510609,1759224632906,-500.0,0.00019311,2]
[388510610,1759224632915,-500.0,0.00019311,2]
[388510611,1759224632924,-500.0,0.00019311,2]
[388510612,1759224632933,-300.0,0.00019311,2]
[388510613,1759224632942,-500.0,0.00019311,2]
[388510614,1759224632952,-500.0,0.00019311,2]
[388510615,1759224632961,-3863.37054996,0.00019312,2]
[388510616,1759224632971,-372.36963946,0.000194,2]
[388510617,1759224632980,-480.0,0.0001941,2]
[388510618,1759224632990,-500.0,0.0001941,2]
[388510619,1759224632999,-480.0,0.0001941,2]
[388510620,1759224633008,-1874.5747522,0.0001941,2]
[388510621,1759224633017,-111.54823316,0.0001941,2]
[388510622,1759224633029,-388.45176684,0.0001941,2]
[388510623,1759224633039,-2668.11,0.0001941,2]
[388510624,1759224633048,-13128.79668774,0.0001941,2]
[388510673,1759224638187,-315.67235533,0.0001941,2]
[388510876,1759224643404,-3472.57537802,0.0001941,2]
[388510877,1759224643414,-500.0,0.00019411,2]
[388510879,1759224643424,-500.0,0.00019411,2]
[388510881,1759224643434,-482.85676906,0.00019411,2]
[388510883,1759224643443,-500.0,0.00019411,2]
[388510884,1759224643452,-480.0,0.00019411,2]
[388510886,1759224643461,-500.0,0.00019411,2]
[388510887,1759224643470,-480.0,0.00019411,2]
[388510888,1759224643480,-500.0,0.00019411,2]
[388510889,1759224643489,-500.0,0.00019411,2]
[388510890,1759224643499,-500.0,0.00019411,2]
[388510891,1759224643509,-480.0,0.00019411,2]
[388510892,1759224643519,-500.0,0.00019411,2]
[388510893,1759224643528,-500.0,0.00019411,2]
[388510894,1759224643538,-598.92,0.00019411,2]
[388510895,1759224643547,-622.42771374,0.00019411,2]
[388510896,1759224643556,-500.0,0.00019411,2]
[388510897,1759224643565,-500.0,0.00019411,2]
[388510898,1759224643575,-480.0,0.00019411,2]
[388510899,1759224643585,-500.0,0.00019411,2]
[388510900,1759224643594,-500.0,0.00019411,2]
[388510901,1759224643604,-500.0,0.00019411,2]
[388510902,1759224643612,-410.79904488,0.00019411,2]